lending/lending_fUSD_20240507
["ID","MTS","AMOUNT","RATE_DAILY","PERIOD"]
[326574038,1715113880722,-500.0,0.00021917,2]
[326574039,1715113880734,-500.0,0.00021917,2]
[326574040,1715113880744,-1096.22,0.00021917,2]
[326574041,1715113880754,-611.88,0.00021917,2]
[326574042,1715113880764,-1409.68,0.00021917,2]
[326574043,1715113880775,-500.0,0.00021917,2]
[326574044,1715113880785,-838.71,0.00021917,2]
[326574045,1715113880794,-500.0,0.00021917,2]
[326574046,1715113880804,-1105.09,0.00021917,2]
[326574047,1715113880814,-500.0,0.00021917,2]
[326574048,1715113880824,-1971.37,0.00021917,2]
[326574049,1715113880835,-592.84,0.00021917,2]
[326574050,1715113880844,-500.0,0.00021917,2]
[326574051,1715113880854,-2089.89,0.00021917,2]
[326574052,1715113880864,-576.81,0.00021917,2]
[326574053,1715113880874,-10776.78,0.00021917,2]
[326574054,1715113880884,-686.2,0.00021917,2]
[326574055,1715113880894,-2275.2,0.00021917,2]
[326574056,1715113880904,-500.0,0.00021917,2]
[326574057,1715113880914,-600.53,0.00021917,2]
[326574058,1715113880924,-1261.59,0.00021917,2]
[326574059,1715113880933,-5265.21,0.00021917,2]
[326574060,1715113880943,-1054.04,0.00021917,2]
[326574061,1715113880952,-874.16,0.00021917,2]
[326574062,1715113880962,-855.49,0.00021917,2]
[326574063,1715113880971,-500.0,0.00021917,2]
[326574064,1715113880980,-856.23,0.00021917,2]
[326574065,1715113880990,-500.0,0.00021917,2]
[326574066,1715113880999,-821.53,0.00021917,2]
[326574067,1715113881008,-363.48521589,0.00021917,2]
[326574068,1715113881019,-1392.01,0.00021917,2]
[326574069,1715113881030,-505.28,0.00021917,2]
[326574070,1715113881040,-1439.95,0.00021917,2]
[326574071,1715113881054,-1149.21,0.00021917,2]
[326574072,1715113881063,-794.53,0.00021917,2]
[326574073,1715113881073,-500.0,0.00021917,2]
[326574074,1715113881083,-500.0,0.00021917,2]
[326574075,1715113881093,-500.0,0.00021917,2]
[326574076,1715113881103,-1692.56,0.00021917,2]
[326574077,1715113881113,-1022.22,0.00021917,2]
[326574078,1715113881124,-1646.75,0.00021917,2]
[326574079,1715113881133,-724.92,0.00021917,2]
[326574080,1715113881143,-500.0,0.00021917,2]
[326574081,1715113881153,-1269.99,0.00021917,2]
[326574082,1715113881162,-242.96235895,0.00021917,2]
[326574083,1715113881172,-500.0,0.00021917,2]
[326574084,1715113881182,-2072.77,0.00021917,2]
[326574085,1715113881191,-607.52,0.00021917,2]
[326574086,1715113881202,-500.0,0.00021917,2]
[326574087,1715113881212,-649.43,0.00021917,2]
[326574088,1715113881222,-752.78,0.00021917,2]
[326574089,1715113881232,-902.24,0.00021917,2]
[326574090,1715113881242,-1048.33,0.00021917,2]
[326574091,1715113881252,-500.0,0.00021917,2]
[326574092,1715113881263,-885.17,0.00021917,2]
[326574093,1715113881275,-949.99,0.00021917,2]
[326574094,1715113881284,-873.43,0.00021917,2]
[326574095,1715113881294,-6949.33,0.00021917,2]
[326574096,1715113881304,-500.0,0.00021917,2]
[326574097,1715113881314,-1045.07,0.00021917,2]
[326574098,1715113881325,-1406.44,0.00021917,2]
[326574099,1715113881335,-500.0,0.00021917,2]
[326574100,1715113881345,-1377.48,0.00021917,2]
[326574101,1715113881355,-500.0,0.00021917,2]
[326574102,1715113881365,-500.0,0.00021917,2]
[326574103,1715113881375,-706.85,0.00021917,2]
[326574104,1715113881384,-988.15,0.00021917,2]
[326574105,1715113881395,-602.53,0.00021917,2]
[326574106,1715113881405,-500.0,0.00021917,2]
[326574107,1715113881415,-702.58,0.00021917,2]
[326574108,1715113881425,-1129.59,0.00021917,2]
[326574109,1715113881435,-801.08,0.00021917,2]
[326574110,1715113881445,-2577.91,0.00021917,2]
[326574111,1715113881455,-2252.22,0.00021917,2]
[326574112,1715113881464,-235.74454673,0.00021917,2]
[326574113,1715113881474,-500.0,0.00021917,2]
[326574114,1715113881484,-691.69,0.00021917,2]
[326574115,1715113881494,-643.49,0.00021917,2]
[326574116,1715113881503,-1003.94,0.00021917,2]
[326574117,1715113881513,-500.0,0.00021917,2]
[326574118,1715113881524,-500.0,0.00021917,2]
[326574119,1715113881534,-500.0,0.00021917,2]
[326574120,1715113881546,-2295.13,0.00021917,2]
[326574121,1715113881556,-500.0,0.00021917,2]
[326574122,1715113881566,-1288.82,0.00021917,2]
[326574123,1715113881576,-1322.38,0.00021917,2]
[326574124,1715113881586,-500.0,0.00021917,2]
[326574125,1715113881596,-557.07,0.00021917,2]
[326574126,1715113881606,-500.0,0.00021917,2]
[326574127,1715113881616,-500.0,0.00021917,2]
[326574128,1715113881626,-651.03,0.00021917,2]
[326574129,1715113881636,-7824.13,0.00021917,2]
[326574130,1715113881646,-2000.0,0.00021918,2]
[326574131,1715113881656,-250.0,0.00021918,2]
[326574132,1715113881666,-2000.0,0.00021918,3]
[326574133,1715113881675,-250.0,0.00021918,2]
[326574134,1715113881685,-150.0,0.00021918,2]
[326574135,1715113881695,-151.0,0.00021918,2]
[326574136,1715113881705,-237.176223,0.00021918,2]
[326574137,1715113881715,-300.0,0.00021965,2]
[326574138,1715113881725,-150.0,0.00021999,10]
[326574139,1715113881735,-549.0,0.00021999,2]
[326574140,1715113881745,-549.0,0.00021999,2]
[326574141,1715113881756,-549.0,0.00021999,2]
[326574142,1715113881766,-549.0,0.00021999,2]
[326574143,1715113881777,-549.0,0.00021999,2]
[326574144,1715113881787,-549.0,0.00021999,2]
[326574145,1715113881797,-549.21,0.00021999,2]
[326574146,1715113881807,-695888.37550029,0.00022,2]
[326574147,1715113881816,-1025.82010555,0.00022,10]
[326574148,1715113881826,-5839.74170923,0.00022,2]
[326574149,1715113881836,-546.30785974,0.00022,2]
[326574150,1715113881846,-1000.0,0.00022,3]
[326574151,1715113881856,-1000.0,0.00022,3]
[326574152,1715113881865,-850.0,0.00022,3]
[326574153,1715113881876,-785.91687423,0.00022,2]
[326574154,1715113881885,-342.0,0.00022,2]
[326574155,1715113881895,-1500.0,0.00022,2]
[326574156,1715113881904,-150.0,0.00022,3]
[326574157,1715113881914,-1180.18,0.00022,2]
[326574158,1715113881924,-247.19287509,0.00022,2]
[326574159,1715113881934,-247.19287509,0.00022,2]
[326574160,1715113881944,-247.19287509,0.00022,2]
[326574161,1715113881953,-247.19287509,0.00022,2]
[326574162,1715113881963,-247.19287509,0.00022,2]
[326574163,1715113881972,-247.19287509,0.00022,2]
[326574164,1715113881982,-247.19287509,0.00022,2]
[326574165,1715113881992,-247.19287509,0.00022,2]
[326574166,1715113882001,-247.19287509,0.00022,2]
[326574167,1715113882011,-247.19287509,0.00022,2]
[326574168,1715113882022,-247.19287509,0.00022,2]
[326574169,1715113882032,-247.19287509,0.00022,2]
[326574170,1715113882046,-247.19287509,0.00022,2]
[326574171,1715113882056,-247.19287509,0.00022,2]
[326574172,1715113882066,-247.19287509,0.00022,2]
[326574173,1715113882076,-247.19287509,0.00022,2]
[326574174,1715113882087,-247.19287509,0.00022,2]
[326574175,1715113882096,-247.19287509,0.00022,2]
[326574176,1715113882107,-247.19287509,0.00022,2]
[326574177,1715113882116,-247.19287509,0.00022,2]
[326574178,1715113882128,-247.19287509,0.00022,2]
[326574179,1715113882139,-247.19287509,0.00022,2]
[326574180,1715113882149,-247.19287509,0.00022,2]
[326574181,1715113882159,-247.19287509,0.00022,2]
[326574182,1715113882168,-247.19287509,0.00022,2]
[326574183,1715113882178,-247.19287509,0.00022,2]
[326574184,1715113882188,-247.19287509,0.00022,2]
[326574185,1715113882198,-247.19287509,0.00022,2]
[326574186,1715113882208,-247.19287509,0.00022,2]
[326574187,1715113882218,-247.19287509,0.00022,2]
[326574188,1715113882227,-247.19287509,0.00022,2]
[326574189,1715113882237,-247.19287509,0.00022,2]
[326574190,1715113882247,-247.19287509,0.00022,2]
[326574191,1715113882257,-247.19287509,0.00022,2]
[326574192,1715113882267,-247.19287509,0.00022,2]
[326574193,1715113882276,-247.19287509,0.00022,2]
[326574194,1715113882286,-247.19287509,0.00022,2]
[326574195,1715113882296,-247.19287509,0.00022,2]
[326574196,1715113882306,-247.19287509,0.00022,2]
[326574197,1715113882315,-247.19287509,0.00022,2]
[326574198,1715113882325,-247.19287509,0.00022,2]
[326574199,1715113882335,-247.19287509,0.00022,2]
[326574200,1715113882344,-247.19287509,0.00022,2]
[326574201,1715113882354,-247.19287509,0.00022,2]
[326574202,1715113882364,-247.19287509,0.00022,2]
[326574203,1715113882374,-247.19287509,0.00022,2]
[326574204,1715113882383,-247.19287509,0.00022,2]
[326574205,1715113882394,-247.19287509,0.00022,2]
[326574206,1715113882403,-247.19287509,0.00022,2]
[326574207,1715113882414,-247.19287509,0.00022,2]
[326574208,1715113882424,-2776.5305642,0.00022003,2]
[326574209,1715113882433,-40663.9852006,0.00022003,2]
[326574210,1715113882443,-2448.9909397,0.00022003,2]
[326574211,1715113882453,-912.31,0.00022055,2]
[326574212,1715113882463,-912.31,0.00022055,2]
[326574213,1715113882472,-414.71,0.00022055,2]
[326574214,1715113882482,-912.31,0.00022055,2]
[326574215,1715113882492,-912.31,0.00022055,2]
[326574216,1715113882501,-414.71,0.00022055,2]
[326574217,1715113882511,-912.31,0.00022055,2]
[326574218,1715113882522,-414.71,0.00022055,2]
[326574219,1715113882533,-3256.3270261,0.00022069,2]
[326574220,1715113882543,-1025.82010555,0.0002211,10]
[326574221,1715113882554,-152.0,0.00022144,3]
[326574222,1715113882564,-500.0,0.00022191,2]
[326574223,1715113882574,-500.0,0.00022191,2]
[326574224,1715113882583,-500.0,0.00022191,2]
[326574225,1715113882593,-316.82050743,0.00022191,2]
[326574226,1715113882602,-500.0,0.00022191,2]
[326574227,1715113882612,-500.0,0.00022191,2]
[326574228,1715113882622,-500.0,0.00022191,2]
[326574229,1715113882631,-500.0,0.00022191,2]
[326574230,1715113882641,-500.0,0.00022191,2]
[326574231,1715113882651,-555.62,0.00022191,2]
[326574232,1715113882660,-500.0,0.00022191,2]
[326574233,1715113882670,-500.0,0.00022191,2]
[326574234,1715113882679,-500.0,0.00022191,2]
[326574235,1715113882689,-500.0,0.00022191,2]
[326574236,1715113882699,-551.12368587,0.00022191,2]
[326574237,1715113882708,-500.0,0.00022191,2]
[326574238,1715113882718,-1076.55,0.00022191,2]
[326574239,1715113882728,-489.29786254,0.00022191,2]
[326574240,1715113882737,-500.0,0.00022191,2]
[326574241,1715113882747,-500.0,0.00022191,2]
[326574242,1715113882757,-500.0,0.00022191,2]
[326574243,1715113882766,-500.0,0.00022191,2]
[326574244,1715113882776,-500.0,0.00022191,2]
[326574245,1715113882785,-500.0,0.00022191,2]
[326574246,1715113882795,-301.72993245,0.00022191,2]
[326574247,1715113882805,-500.0,0.00022191,2]
[326574248,1715113882815,-500.0,0.00022191,2]
[326574249,1715113882825,-508.63,0.00022191,2]
[326574250,1715113882834,-500.0,0.00022191,2]
[326574251,1715113882844,-500.0,0.00022191,2]
[326574252,1715113882854,-500.0,0.00022191,2]
[326574253,1715113882863,-500.0,0.00022191,2]
[326574254,1715113882874,-629.13,0.00022191,2]
[326574255,1715113882883,-500.0,0.00022191,2]
[326574256,1715113882893,-597.37,0.00022191,2]
[326574257,1715113882903,-268.51,0.00022191,2]
[326574258,1715113882912,-500.0,0.00022191,2]
[326574259,1715113882922,-504.72,0.00022191,2]
[326574260,1715113882931,-500.0,0.00022191,2]
[326574261,1715113882940,-500.0,0.00022191,2]
[326574262,1715113882949,-500.0,0.00022191,2]
[326574263,1715113882959,-500.0,0.00022191,2]
[326574264,1715113882968,-500.0,0.00022191,2]
[326574265,1715113882978,-500.0,0.00022191,2]
[326574266,1715113882988,-518.3,0.00022191,2]
[326574267,1715113882997,-587.47,0.00022191,2]
[326574268,1715113883006,-500.0,0.00022191,2]
[326574269,1715113883016,-500.0,0.00022191,2]
[326574270,1715113883026,-696.01,0.00022191,2]
[326574271,1715113883036,-500.0,0.00022191,2]
[326574272,1715113883050,-500.0,0.00022191,2]
[326574273,1715113883060,-521.77665777,0.00022191,2]
[326574274,1715113883069,-500.0,0.00022191,2]
[326574275,1715113883079,-500.0,0.00022191,2]
[326574276,1715113883089,-500.0,0.00022191,2]
[326574277,1715113883099,-500.0,0.00022191,2]
[326574278,1715113883109,-500.0,0.00022191,2]
[326574279,1715113883118,-500.0,0.00022191,2]
[326574280,1715113883168,-526.99,0.00022191,2]
[326574281,1715113883178,-684.15,0.00022191,2]
[326574282,1715113883187,-500.0,0.00022191,2]
[326574283,1715113883196,-500.37,0.00022191,2]
[326574284,1715113883206,-500.0,0.00022191,2]
[326574285,1715113883214,-500.0,0.00022191,2]
[326574286,1715113883223,-599.49,0.00022191,2]
[326574287,1715113883233,-500.0,0.00022191,2]
[326574288,1715113883242,-582.5,0.00022191,2]
[326574289,1715113883251,-500.0,0.00022191,2]
[326574290,1715113883260,-500.0,0.00022191,2]
[326574291,1715113883270,-500.0,0.00022191,2]
[326574292,1715113883280,-500.0,0.00022191,2]
[326574293,1715113883290,-500.0,0.00022191,2]
[326574294,1715113883299,-715.61,0.00022191,2]
[326574295,1715113883308,-449.45140465,0.00022191,2]
[326574296,1715113883317,-432.05682539,0.00022191,2]
[326574297,1715113883326,-500.0,0.00022191,2]
[326574298,1715113883336,-500.0,0.00022191,2]
[326574299,1715113883346,-500.0,0.00022191,2]
[326574300,1715113883356,-1741.3,0.00022191,2]
[326574301,1715113883365,-535.22,0.00022191,2]
[326574302,1715113883374,-940.62,0.00022191,2]
[326574303,1715113883383,-500.0,0.00022191,2]
[326574304,1715113883392,-539.68,0.00022191,2]
[326574305,1715113883402,-2788.2,0.00022191,2]
[326574306,1715113883411,-500.0,0.00022191,2]
[326574307,1715113883420,-1292.34,0.00022191,2]
[326574308,1715113883430,-645.46,0.00022191,2]
[326574309,1715113883440,-710.27,0.00022191,2]
[326574310,1715113883449,-749.26,0.00022191,2]
[326574311,1715113883458,-2223.0,0.00022191,2]
[326574312,1715113883468,-500.0,0.00022191,2]
[326574313,1715113883478,-500.0,0.00022191,2]
[326574314,1715113883487,-711.78,0.00022191,2]
[326574315,1715113883496,-500.0,0.00022191,2]
[326574316,1715113883506,-547.13,0.00022191,2]
[326574317,1715113883515,-680.12,0.00022191,2]
[326574318,1715113883528,-1577.76,0.00022191,2]
[326574319,1715113883537,-561.78,0.00022191,2]
[326574320,1715113883547,-581.76,0.00022191,2]
[326574321,1715113883558,-500.0,0.00022191,2]
[326574322,1715113883568,-500.0,0.00022191,2]
[326574323,1715113883578,-578.29,0.00022191,2]
[326574324,1715113883588,-687.99,0.00022191,2]
[326574325,1715113883598,-516.49,0.00022191,2]
[326574326,1715113883607,-4127.75,0.00022191,2]
[326574327,1715113883617,-799.61,0.00022191,2]
[326574328,1715113883627,-1401.63,0.00022191,2]
[326574329,1715113883636,-776.79,0.00022191,2]
[326574330,1715113883645,-1437.13,0.00022191,2]
[326574331,1715113883654,-701.01,0.00022191,2]
[326574332,1715113883663,-5537.35,0.00022191,2]
[326574333,1715113883672,-853.18,0.00022191,2]
[326574334,1715113883681,-818.27,0.00022191,2]
[326574335,1715113883691,-500.0,0.00022191,2]
[326574336,1715113883700,-558.94,0.00022191,2]
[326574337,1715113883709,-500.0,0.00022191,2]
[326574338,1715113883718,-1491.2,0.00022191,2]
[326574339,1715113883727,-500.0,0.00022191,2]
[326574340,1715113883738,-727.39,0.00022191,2]
[326574341,1715113883747,-591.9,0.00022191,2]
[326574342,1715113883757,-560.68,0.00022191,2]
[326574343,1715113883766,-669.61,0.00022191,2]
[326574344,1715113883775,-1228.41,0.00022191,2]
[326574345,1715113883786,-624.03,0.00022191,2]
[326574346,1715113883795,-1070.76,0.00022191,2]
[326574347,1715113883805,-500.0,0.00022191,2]
[326574348,1715113883815,-500.0,0.00022191,2]
[326574349,1715113883824,-3412.33,0.00022191,2]
[326574350,1715113883834,-500.0,0.00022191,2]
[326574351,1715113883843,-500.0,0.00022191,2]
[326574352,1715113883853,-910.86,0.00022191,2]
[326574353,1715113883863,-500.0,0.00022191,2]
[326574354,1715113883872,-500.0,0.00022191,2]
[326574355,1715113883883,-359.71650719,0.00022191,2]
[326574356,1715113883892,-500.0,0.00022191,2]
[326574357,1715113883902,-500.0,0.00022191,2]
[326574358,1715113883912,-576.45,0.00022191,2]
[326574359,1715113883922,-722.56,0.00022191,2]
[326574360,1715113883932,-1842.24,0.00022191,2]
[326574361,1715113883942,-485.52056206,0.00022191,2]
[326574362,1715113883952,-500.0,0.00022191,2]
[326574363,1715113883962,-1096.22,0.00022191,2]
[326574364,1715113883971,-1409.68,0.00022191,2]
[326574365,1715113883980,-611.88,0.00022191,2]
[326574366,1715113883990,-500.0,0.00022191,2]
[326574367,1715113883999,-838.71,0.00022191,2]
[326574368,1715113884009,-500.0,0.00022191,2]
[326574369,1715113884019,-1105.09,0.00022191,2]
[326574370,1715113884029,-500.0,0.00022191,2]
[326574371,1715113884040,-1971.37,0.00022191,2]
[326574372,1715113884053,-592.84,0.00022191,2]
[326574373,1715113884062,-500.0,0.00022191,2]
[326574374,1715113884071,-2089.89,0.00022191,2]
[326574375,1715113884081,-576.81,0.00022191,2]
[326574376,1715113884092,-10776.78,0.00022191,2]
[326574377,1715113884101,-686.2,0.00022191,2]
[326574378,1715113884111,-2275.2,0.00022191,2]
[326574379,1715113884123,-500.0,0.00022191,2]
[326574380,1715113884133,-600.53,0.00022191,2]
[326574381,1715113884144,-1261.59,0.00022191,2]
[326574382,1715113884154,-5265.21,0.00022191,2]
[326574383,1715113884163,-1054.04,0.00022191,2]
[326574384,1715113884172,-874.16,0.00022191,2]
[326574385,1715113884182,-855.49,0.00022191,2]
[326574386,1715113884191,-500.0,0.00022191,2]
[326574387,1715113884201,-856.23,0.00022191,2]
[326574388,1715113884210,-500.0,0.00022191,2]
[326574389,1715113884219,-821.53,0.00022191,2]
[326574390,1715113884229,-1392.01,0.00022191,2]
[326574391,1715113884238,-505.28,0.00022191,2]
[326574392,1715113884247,-1439.95,0.00022191,2]
[326574393,1715113884256,-1149.21,0.00022191,2]
[326574394,1715113884266,-794.53,0.00022191,2]
[326574395,1715113884275,-500.0,0.00022191,2]
[326574396,1715113884285,-500.0,0.00022191,2]
[326574397,1715113884294,-500.0,0.00022191,2]
[326574398,1715113884303,-1692.56,0.00022191,2]
[326574399,1715113884313,-1022.22,0.00022191,2]
[326574400,1715113884322,-1646.75,0.00022191,2]
[326574401,1715113884331,-724.92,0.00022191,2]
[326574402,1715113884340,-500.0,0.00022191,2]
[326574403,1715113884350,-1269.99,0.00022191,2]
[326574404,1715113884359,-500.0,0.00022191,2]
[326574405,1715113884368,-2072.77,0.00022191,2]
[326574406,1715113884377,-607.52,0.00022191,2]
[326574407,1715113884386,-500.0,0.00022191,2]
[326574408,1715113884396,-649.43,0.00022191,2]
[326574409,1715113884405,-752.78,0.00022191,2]
[326574410,1715113884415,-902.24,0.00022191,2]
[326574411,1715113884425,-500.0,0.00022191,2]
[326574412,1715113884434,-1048.33,0.00022191,2]
[326574413,1715113884444,-949.99,0.00022191,2]
[326574414,1715113884454,-873.43,0.00022191,2]
[326574415,1715113884463,-6949.33,0.00022191,2]
[326574416,1715113884473,-500.0,0.00022191,2]
[326574417,1715113884482,-885.17,0.00022191,2]
[326574418,1715113884491,-1045.07,0.00022191,2]
[326574419,1715113884501,-1406.44,0.00022191,2]
[326574420,1715113884511,-500.0,0.00022191,2]
[326574421,1715113884520,-1377.48,0.00022191,2]
[326574422,1715113884531,-500.0,0.00022191,2]
[326574423,1715113884540,-500.0,0.00022191,2]
[326574424,1715113884550,-706.85,0.00022191,2]
[326574425,1715113884559,-988.15,0.00022191,2]
[326574426,1715113884569,-500.0,0.00022191,2]
[326574427,1715113884579,-702.58,0.00022191,2]
[326574428,1715113884588,-1129.59,0.00022191,2]
[326574429,1715113884597,-602.53,0.00022191,2]
[326574430,1715113884607,-801.08,0.00022191,2]
[326574431,1715113884616,-2577.91,0.00022191,2]
[326574432,1715113884626,-2252.22,0.00022191,2]
[326574433,1715113884635,-500.0,0.00022191,2]
[326574434,1715113884645,-691.69,0.00022191,2]
[326574435,1715113884654,-643.49,0.00022191,2]
[326574436,1715113884664,-1003.94,0.00022191,2]
[326574437,1715113884673,-500.0,0.00022191,2]
[326574438,1715113884683,-500.0,0.00022191,2]
[326574439,1715113884692,-500.0,0.00022191,2]
[326574440,1715113884701,-2295.13,0.00022191,2]
[326574441,1715113884711,-500.0,0.00022191,2]
[326574442,1715113884720,-1288.82,0.00022191,2]
[326574443,1715113884730,-1322.38,0.00022191,2]
[326574444,1715113884739,-500.0,0.00022191,2]
[326574445,1715113884748,-557.07,0.00022191,2]
[326574446,1715113884758,-255.04135255,0.00022191,2]
[326574447,1715113884768,-647.19541792,0.00022191,2]
[326574448,1715113884778,-651.03,0.00022191,2]
[326574449,1715113884787,-7824.13,0.00022191,2]
[326574450,1715113884797,-1025.82010555,0.00022192,10]
[326574451,1715113884806,-150.0,0.00022192,2]
[326574452,1715113884815,-326.18,0.00022192,2]
[326574453,1715113884826,-303.61,0.00022192,2]
[326574454,1715113884835,-150.0,0.00022192,2]
[326574455,1715113884845,-701.64,0.00022192,2]
[326574456,1715113884855,-163.16,0.00022192,2]
[326574457,1715113884864,-150.0,0.00022192,2]
[326574458,1715113884873,-157.050805,0.00022198,2]
[326574459,1715113884883,-1000.0,0.000222,2]
[326574460,1715113884892,-5737.74953061,0.00022205,2]
[326574461,1715113884901,-872.57,0.00022211,2]
[326574462,1715113884910,-356.34350886,0.0002222,2]
[326574463,1715113884920,-153.63575398,0.00022227,2]
[326574464,1715113884929,-886.92,0.000223,2]
[326574465,1715113884938,-1025.82010555,0.00022301,10]
[326574466,1715113884948,-179.8,0.00022325,5]
[326574467,1715113884958,-150.0,0.0002237,2]
[326574468,1715113884967,-1025.82010555,0.00022384,10]
[326574469,1715113884976,-150.0,0.00022407,2]
[326574470,1715113884986,-434.4,0.00022407,2]
[326574471,1715113884995,-157.050805,0.00022448,2]
[326574472,1715113885005,-500.0,0.00022465,2]
[326574473,1715113885015,-500.0,0.00022465,2]
[326574474,1715113885025,-500.0,0.00022465,2]
[326574475,1715113885035,-500.0,0.00022465,2]
[326574476,1715113885046,-500.0,0.00022465,2]
[326574477,1715113885057,-500.0,0.00022465,2]
[326574478,1715113885066,-500.0,0.00022465,2]
[326574479,1715113885075,-500.0,0.00022465,2]
[326574480,1715113885086,-555.62,0.00022465,2]
[326574481,1715113885096,-633.95137159,0.00022465,2]
[326574482,1715113885105,-500.0,0.00022465,2]
[326574483,1715113885114,-500.0,0.00022465,2]
[326574484,1715113885125,-500.0,0.00022465,2]
[326574485,1715113885134,-500.0,0.00022465,2]
[326574486,1715113885143,-1076.55,0.00022465,2]
[326574487,1715113885153,-500.0,0.00022465,2]
[326574488,1715113885162,-543.53867106,0.00022465,2]
[326574489,1715113885171,-500.0,0.00022465,2]
[326574490,1715113885180,-500.0,0.00022465,2]
[326574491,1715113885189,-500.0,0.00022465,2]
[326574492,1715113885199,-500.0,0.00022465,2]
[326574493,1715113885208,-500.0,0.00022465,2]
[326574494,1715113885218,-500.0,0.00022465,2]
[326574495,1715113885227,-508.63,0.00022465,2]
[326574496,1715113885236,-227.69111777,0.00022465,2]
[326574497,1715113885245,-500.0,0.00022465,2]
[326574498,1715113885255,-500.0,0.00022465,2]
[326574499,1715113885264,-500.0,0.00022465,2]
[326574500,1715113885274,-629.13,0.00022465,2]
[326574501,1715113885284,-500.0,0.00022465,2]
[326574502,1715113885294,-268.51,0.00022465,2]
[326574503,1715113885303,-500.0,0.00022465,2]
[326574504,1715113885312,-597.37,0.00022465,2]
[326574505,1715113885322,-504.72,0.00022465,2]
[326574506,1715113885331,-500.0,0.00022465,2]
[326574507,1715113885340,-500.0,0.00022465,2]
[326574508,1715113885350,-500.0,0.00022465,2]
[326574509,1715113885360,-183.94731154,0.00022465,2]
[326574510,1715113885370,-500.0,0.00022465,2]
[326574511,1715113885381,-500.0,0.00022465,2]
[326574512,1715113885390,-518.3,0.00022465,2]
[326574513,1715113885400,-587.47,0.00022465,2]
[326574514,1715113885410,-500.0,0.00022465,2]
[326574515,1715113885419,-500.0,0.00022465,2]
[326574516,1715113885429,-696.01,0.00022465,2]
[326574517,1715113885438,-500.0,0.00022465,2]
[326574518,1715113885448,-496.73840461,0.00022465,2]
[326574519,1715113885457,-500.0,0.00022465,2]
[326574520,1715113885466,-500.0,0.00022465,2]
[326574521,1715113885476,-500.0,0.00022465,2]
[326574522,1715113885485,-500.0,0.00022465,2]
[326574523,1715113885494,-500.0,0.00022465,2]
[326574524,1715113885504,-500.0,0.00022465,2]
[326574525,1715113885513,-526.99,0.00022465,2]
[326574526,1715113885522,-684.15,0.00022465,2]
[326574527,1715113885532,-500.0,0.00022465,2]
[326574528,1715113885541,-500.37,0.00022465,2]
[326574529,1715113885552,-500.0,0.00022465,2]
[326574530,1715113885560,-500.0,0.00022465,2]
[326574531,1715113885570,-599.49,0.00022465,2]
[326574532,1715113885580,-500.0,0.00022465,2]
[326574533,1715113885589,-582.5,0.00022465,2]
[326574534,1715113885600,-500.0,0.00022465,2]
[326574535,1715113885609,-500.0,0.00022465,2]
[326574536,1715113885619,-500.0,0.00022465,2]
[326574537,1715113885628,-500.0,0.00022465,2]